Cogmind - Beta 15 @@@ ROGUE MODE // 2025.10.13 @ 05:16:09 Player: shapeshifter Result: Destroyed by P-70 Sage via exploding Fusion Modulator Performance ------------- Evolutions (6) 3000 Regions Visited (18) 3600 Robots Destroyed (163) 815 Value Destroyed (5727) 5727 Prototype IDs (48) 960 Alien Tech Used (0) 0 Bonus (5727) 5727 TOTAL SCORE: 19829 Bonus ------- High Alert Combat Kills 17 Follower Combat Kills 902 Registered with UFD 300 Met Optimus in HQ 500 Met Imprinter 300 Met Warlord at Base 500 MAIN.C Attacked Warlord 500 Warlord Defense Kills 3750 Friendly Fire -1042 Cogmind --------- Core Integrity 0/1150 Matter 299/300 Energy 150/150 System Corruption 8% Temperature Cool (12) Movement Hovering (60) Location -4/Factory Parts ------- > --- POWER (2) -------- Micro Fission Core > --- PROPULSION (6) --- Antigrav System VTOL Module > --- UTILITY (8) ------ Advanced Terrain Scan Processor Advanced Melee Analysis Suite Improved Hacking Suite Improved System Shield Authchip [Propulsion] > --- WEAPON (3) ------- Companion Sword > --- INVENTORY (5) ---- Experimental Energy Well (600) Advanced Force Booster Experimental Phase Shifter Experimental Focal Shield GAL Module Peak State ------------ > --- POWER ------------ Micro Fission Core Antimatter Reactor > --- PROPULSION ------- Antigrav System Antigrav System Antigrav System Impulse Thruster Impulse Thruster Array > --- UTILITY ---------- Large Storage Unit Advanced Melee Analysis Suite Advanced Transmission Jammer Improved Propulsion Shielding Improved Hacking Suite Improved Hacking Suite Improved Hacking Suite Master Drone Bay > --- WEAPON ----------- Companion Sword > --- INVENTORY -------- Experimental Energy Well Jamming Amplifier Experimental Phase Shifter Experimental Focal Shield Improved Hacking Suite Improved Hacking Suite Authchip [Propulsion] Authchip [Propulsion] Plasma Rifle Vortex Driver CPS Tube RU-N14's Throwing Claymores v3 GAL Module [Rating: 108] Favorites ----------- Power Improved Ion Engine Engine Improved Ion Engine Power Core Micro Fission Core Reactor Light Antimatter Reactor Propulsion Wheel Treads Light Treads Leg Improved Titanium Leg Wheel Wheel Hover Unit Antigrav System Flight Unit Nuclear Pulse Thruster Utility Large Storage Unit Device Improved Heat Sink Storage Large Storage Unit Processor Advanced Melee Analysis Suite Hackware Improved Hacking Suite Protection Hardened Light Armor Plating Weapon Companion Sword Energy Gun Improved Medium Laser Energy Cannon Advanced Beam Cannon Ballistic Gun Autogun Launcher Mini Grenade Launcher Special Weapon Improved Remote Datajack Slashing Weapon Companion Sword Build | -11 -10 -9 -9 -9 -9 -6 -6 -6 -6 -5 -5 -5 -5 -5 -4 -4 -4 -4 ------- Run | Yrd Mat Mat Sto Rec Scr Fac Low Low Zio Pro Fac Upp Upp War Pro Fac Was Fac Slots Evolved 12 | . . 2 . . . 6 . . . . 2 . . . . 2 . . Power 1 | . . . . . . . . . . . . . . . . 1 . . Propulsion 4 | . . . . . . 3 . . . . 1 . . . . . . . Utility 6 | . . 1 . . . 3 . . . . 1 . . . . 1 . . Weapon 1 | . . 1 . . . . . . . . . . . . . . . . Parts Attached 181 | 7 7 17 16 . 19 24 3 4 2 . 7 1 2 23 4 22 1 22 Power 23 | 1 1 1 3 . 1 3 . 1 . . . 1 . 3 1 4 . 3 Engine 12 | 1 1 1 3 . 1 2 . . . . . 1 . 2 . . . . Core 7 | . . . . . . 1 . . . . . . . 1 1 2 . 2 Reactor 4 | . . . . . . . . 1 . . . . . . . 2 . 1 Propulsion 53 | 2 1 2 3 . 6 9 2 1 . . 1 . . 7 1 9 . 9 Treads 7 | 2 1 . 1 . . 1 . . . . . . . . . 2 . . Leg 8 | . . . . . 2 6 . . . . . . . . . . . . Wheel 6 | . . 2 1 . 2 . . . . . . . . . . 1 . . Hover 8 | . . . . . . 1 . . . . . . . 1 1 3 . 2 Flight 24 | . . . 1 . 2 1 2 1 . . 1 . . 6 . 3 . 7 Utility 69 | 2 2 5 4 . 7 11 1 2 2 . 5 . 2 5 2 9 . 10 Device 23 | 1 1 1 1 . 3 5 . 1 2 . 2 . 1 2 1 . . 2 Storage 9 | 1 1 2 . . 1 . . . . . 1 . 1 1 . . . 1 Processor 17 | . . 1 1 . 2 5 1 1 . . 1 . . 1 1 1 . 2 Hackware 13 | . . . . . . . . . . . 1 . . . . 7 . 5 Protection 7 | . . 1 2 . 1 1 . . . . . . . 1 . 1 . . Artifact . | . . . . . . . . . . . . . . . . . . . Weapon 36 | 2 3 9 6 . 5 1 . . . . 1 . . 8 . . 1 . Energy Gun 8 | 1 1 3 3 . . . . . . . . . . . . . . . Energy Cannon 7 | . . 3 2 . . . . . . . . . . 1 . . 1 . Ballistic Gun 9 | 1 2 3 . . 3 . . . . . . . . . . . . . Ballistic Cannon . | . . . . . . . . . . . . . . . . . . . Launcher 3 | . . . 1 . . 1 . . . . . . . 1 . . . . Special Weapon 8 | . . . . . 1 . . . . . 1 . . 6 . . . . Impact Weapon . | . . . . . . . . . . . . . . . . . . . Slashing Weapon 1 | . . . . . 1 . . . . . . . . . . . . . Piercing Weapon . | . . . . . . . . . . . . . . . . . . . Special Melee Weapon . | . . . . . . . . . . . . . . . . . . . Unidentified Prototypes 19 | . . 1 3 . 2 1 . . 1 . 1 . . 8 . 2 . . Corrupted Parts 2 | . . . . . . . . . . . . 1 . . . . . 1 System Corruption 3 | . . . . . . . . . . . . 1 . . . . . 2 Parts Lost 51 | . 2 . 2 . 2 2 . . . . . 2 . 6 7 11 . 17 Power 5 | . . . 1 . . . . . . . . 2 . . . 1 . 1 Propulsion 24 | . . . 1 . 1 1 . . . . . . . 2 4 5 . 10 Utility 21 | . 1 . . . 1 1 . . . . . . . 4 3 5 . 6 Weapon 1 | . 1 . . . . . . . . . . . . . . . . . Highest Loss Streak 12 | . 1 . 2 . 2 1 . . . . . 2 . 6 4 6 . 12 To Critical Strikes . | . . . . . . . . . . . . . . . . . . . Average Backups 15 | 3 6 16 19 20 18 14 15 14 13 13 13 13 13 13 13 12 12 7 Power . | . . . . . . . 1 1 1 1 1 . . . . . 1 . Propulsion 1 | 1 2 2 3 3 3 1 1 1 1 1 1 1 1 . . . . . Utility 10 | . 2 11 13 15 13 8 9 9 8 8 8 9 8 9 8 8 8 5 Weapon 1 | . 1 1 2 1 1 2 2 2 2 2 2 2 2 3 2 2 1 . Tool/Special . | . . . . . . . . . . . . . . . . . . . Unused Backups 51 | 1 1 8 8 2 12 7 2 1 2 . . . . 1 . 2 1 3 Power 2 | . . . 1 . . 1 . . . . . . . . . . . . Propulsion 10 | . . 2 4 . 3 1 . . . . . . . . . . . . Utility 28 | 1 . 4 3 1 9 3 1 1 2 . . . . 1 . 1 1 . Weapon 10 | . 1 2 . 1 . 2 1 . . . . . . . . 1 . 2 Tool/Special 1 | . . . . . . . . . . . . . . . . . . 1 Average Slot Usage (%) 79 | . 97 94 94 95 72 82 79 81 85 86 84 87 85 87 56 54 60 58 Engine 7 | . 14 11 7 11 11 5 . . . . . . 5 3 1 . 1 . Treads 3 | . 28 12 2 . . . . . . . . . . . . 5 . . Leg 3 | . . . . . 4 22 . . . . . . . . . . . . Wheel 8 | . . 9 17 22 16 . . . . . . . . . . 1 . . Flight 8 | . . . . . . 4 25 27 32 33 29 29 29 33 26 4 15 13 Device 9 | . 14 7 11 11 7 13 13 13 13 13 10 11 10 11 6 5 . . Storage 8 | . 14 11 11 11 11 6 6 6 6 6 5 5 5 5 5 4 5 2 Processor 7 | . . 4 7 . 4 14 20 20 20 20 17 17 17 16 7 1 5 7 Hackware 2 | . . . . . . . . . . . 5 5 5 4 . 12 15 18 Protection 4 | . . 3 3 11 9 3 . . . . . . . . . . . . Energy Gun 3 | . 8 5 24 9 . . . . . . . . . . . . . . Energy Cannon 1 | . . . 7 18 . . . . . . . . . . . . 1 . Ballistic Gun 3 | . 18 26 . . . . . . . . . . . . . . . . Slashing Weapon 4 | . . . . . 6 6 6 6 6 6 5 5 5 5 5 5 5 5 Peak Build Rating 108 | 8 12 25 26 25 38 72 71 67 67 67 86 86 84 103 82 108 88 98 Average Rating 40 | 4 9 16 23 23 22 53 66 65 66 67 79 84 79 87 58 63 81 62 On Entrance 50 | . 7 12 23 25 16 26 71 67 66 67 67 86 81 78 73 46 79 78 Naked Turns . | . . . . . . . . . . . . . . . . . . . Heaviest Build 143 | 15 30 143 65 65 62 42 32 37 37 37 41 41 38 48 37 49 45 38 Greatest Support 78 | 40 40 40 20 20 39 78 39 38 38 37 44 42 43 45 39 46 30 38 Greatest Overweight (x) 7 | . . 7 5 3 5 1 . . 1 . . . . 1 1 2 1 1 Average Overweight (x) . | . . 1 3 2 1 . . . . . . . . . . . . . Largest Inventory Capacity 25 | 8 15 25 20 20 20 15 15 15 15 15 15 15 15 15 15 15 15 15 Average Capacity 16 | 7 13 17 20 20 18 15 15 15 15 15 15 15 15 15 15 14 15 8 Most Carried 25 | 6 12 25 20 20 20 15 15 15 15 15 15 15 15 15 15 15 15 15 Average Carried 15 | 3 6 16 19 20 18 14 14 14 14 15 14 14 14 14 14 13 13 8 Final Capacity 20 | 8 15 20 20 20 15 15 15 15 15 15 15 15 15 15 15 15 15 5 Final Carried 20 | 5 12 20 20 20 15 15 15 15 15 15 15 14 15 15 14 14 13 5 Class Distribution -------------------- 33% | Commander-Mutant 16% | Mutant 8% | Scavenger-Sprinter 8% | Gunner 6% | Commander-Tank 5% | Hacker-Mutant 4% | Scavenger-Mutant 3% | Sprinter 3% | Skirmisher 3% | Commander-Sprinter Dominant Class ---------------- Mutant | -10/Materials Gunner | -9/Materials Gunner | -9/Storage Commander-Tank | -9/Recycling Commander-Mutant | -9/Scraptown Mutant | -6/Factory Sprinter | -6/Lower Caves Sprinter | -6/Lower Caves Scavenger-Sprinter | -6/Zion Scavenger-Sprinter | -5/Proximity Caves Scavenger-Sprinter | -5/Factory Scavenger-Sprinter | -5/Upper Caves Derelict-Sprinter | -5/Upper Caves Commander-Sprinter | -5/Warlord Mutant | -4/Proximity Caves Mutant | -4/Factory Hacker-Mutant | -4/Waste Scavenger-Mutant | -4/Factory Resources | -11 -10 -9 -9 -9 -9 -6 -6 -6 -6 -5 -5 -5 -5 -5 -4 -4 -4 -4 ----------- Run | Yrd Mat Mat Sto Rec Scr Fac Low Low Zio Pro Fac Upp Upp War Pro Fac Was Fac Matter Collected 4000 | 218 432 760 406 24 270 345 90 60 53 . 127 36 88 477 55 266 80 213 Remotely . | . . . . . . . . . . . . . . . . . . . Salvage Created 6739 | 37 586 934 1164 188 . 732 65 47 . . 252 113 . 609 122 505 816 569 Parts 321 | 8 37 51 61 11 . 34 8 1 . . 15 3 . 26 16 14 1 35 Haulers Intercepted 11 | . . 3 3 . . 1 . . . . 1 . . . . 2 . 1 Recyclers Shooed 3 | . . 1 . . . . . . . . 1 . . . . 1 . . Parts Field Recycled . | . . . . . . . . . . . . . . . . . . . Retrieved Matter . | . . . . . . . . . . . . . . . . . . . Parts Self-Destructed 21 | . . . . . . . 3 . . . . 5 . . 13 . . . Prevented 1 | . . . . . . . . . . . . 1 . . . . . . Kills | -11 -10 -9 -9 -9 -9 -6 -6 -6 -6 -5 -5 -5 -5 -5 -4 -4 -4 -4 ------- Run | Yrd Mat Mat Sto Rec Scr Fac Low Low Zio Pro Fac Upp Upp War Pro Fac Was Fac Combat Hostiles Destroyed 114 | . 14 12 17 4 . 7 1 . . . 2 2 . 34 4 5 5 7 Melee 27 | . . . . . . 7 1 . . . 2 2 . 1 4 3 . 7 Guns 40 | . 14 12 14 . . . . . . . . . . . . . . . Cannons 17 | . . . 2 4 . . . . . . . . . 6 . 2 3 . AOE 30 | . . . 1 . . . . . . . . . . 27 . . 2 . Classes Destroyed 26 | 1 4 6 . 1 . 1 3 . . . . . . 8 1 . 1 . Worker 5 | . . 2 2 . . . . . . . . . . . . . . 1 Builder 5 | . . 1 1 . . 1 . . . . . . . . . . . 2 Tunneler 3 | 2 . . . . . 1 . . . . . . . . . . . . Hauler 11 | . . 3 3 . . 1 . . . . 1 . . . . 2 . 1 Recycler 8 | . . 3 3 . . 1 . . . . . . . . . . . 1 Minesweeper 1 | . . . . . . . 1 . . . . . . . . . . . Operator 4 | . 1 1 1 . . . . . . . 1 . . . . . . . Drone 2 | . . . . . . . . . . . . . . . 2 . . . Watcher 8 | . 2 5 1 . . . . . . . . . . . . . . . Swarmer 22 | . 3 2 3 . . . . . . . . . . 10 . . . 4 Grunt 39 | . 11 7 9 1 . 4 . . . . . . . 6 . 1 . . Brawler 6 | . . . . . . . . . . . . . . 6 . . . . Duelist 3 | . . 1 . . . . . . . . . . . 2 . . . . Protector 4 | . . . . 1 . . . . . . . . . 3 . . . . Sentry 13 | . . 2 5 2 . 1 . . . . 1 . . . . 1 . 1 Demolisher 1 | . . . . . . . . . . . . . . 1 . . . . Hunter 1 | . . . . . . . . . . . . . . 1 . . . . Programmer 15 | . . . . . . 2 . . . . 1 2 . 3 2 3 . 2 Compactor 5 | . . . . . . . . . . . . . . . . . 5 . Striker 1 | . . . . . . . . . . . . . . 1 . . . . Executioner 1 | . . . . . . . . . . . . . . 1 . . . . Samaritan 2 | . . . . . . . 1 1 . . . . . . . . . . Thief 1 | . . . . . . . 1 . . . . . . . . . . . Surgeon 1 | . . . . . . . . . . . . . . 1 . . . . Thug 1 | . . . . . . . . . . . . . . 1 . . . . Fireman 1 | . . . . . . . . . . . . . . 1 . . . . Mutant 1 | . . . . . . . . . . . . . . 1 . . . . Best Kill Streak 9 | 1 4 4 6 2 . 3 2 . . . 2 2 . 9 2 2 2 5 Combat Bots Only 9 | . 3 3 4 2 . 3 1 . . . 1 2 . 9 2 2 2 5 Max Kills in Single Turn 5 | 1 2 2 2 1 . 1 1 1 . . 1 1 . 5 1 1 1 1 Gunslinging 1 | . 1 . 1 . . . . . . . . . . . . . . . Exploded 4 | . . . 1 . . . . . . . . . . 4 . . 1 . Melee 1 | . . . . . . 1 1 . . . 1 1 . 1 1 1 . 1 Uniques/NPCs Destroyed . | . . . . . . . . . . . . . . . . . . . Combat | -11 -10 -9 -9 -9 -9 -6 -6 -6 -6 -5 -5 -5 -5 -5 -4 -4 -4 -4 -------- Run | Yrd Mat Mat Sto Rec Scr Fac Low Low Zio Pro Fac Upp Upp War Pro Fac Was Fac Hostile Shots Fired 653 | . 81 51 77 6 . 104 2 . . 3 11 26 3 27 33 115 . 114 Missed 205 | . 19 7 25 2 . 38 1 . . 3 5 8 3 12 10 30 . 42 Hits 448 | . 62 44 52 4 . 66 1 . . . 6 18 . 15 23 85 . 72 Melee 1 | . . . . . . . 1 . . . . . . . . . . . Projectile 447 | . 62 44 52 4 . 66 . . . . 6 18 . 15 23 85 . 72 AOE 6 | . . . . . . . . . . . . . . 5 . . . 1 Critical Strikes 17 | . 1 . . 1 . 5 . . . . . 1 . . 1 3 . 5 Part Disruptions 2 | . . . . . . 1 . . . . . . . . . . . 1 Damage Taken 7728 | . 697 509 552 58 177 796 . . . . 133 358 . 826 481 1746 . 1395 Core 2180 | . 188 56 89 29 . 107 . . . . 17 118 . 279 115 537 . 645 Absorbed by Shields 265 | . . . . . . 107 . . . . . . . 158 . . . . Redirected to Shielding 101 | . . . . . . . . . . . . . . . . 101 . . Regen/Repaired (Parts) 481 | . . . . . 52 . . . 233 . . . . 94 . . 97 5 Core Remaining (%) 62 | 100 24 . . . 56 . . . . 87 . . . . 47 . . . Volleys Fired 268 | 2 60 70 55 7 . . . . . . . 3 . 28 2 6 35 . Largest 3 | 2 2 3 3 2 . . . . . . . 1 . 1 1 1 1 . Hottest 168 | 70 70 168 168 136 . . . . . . . 7 . 100 100 100 100 . Shots Fired 554 | 4 113 210 139 14 . . . . . . . 3 . 28 2 6 35 . Gun 443 | 4 113 210 116 . . . . . . . . . . . . . . . Cannon 73 | . . . 20 14 . . . . . . . . . 1 2 6 30 . Launcher 5 | . . . 3 . . . . . . . . . . 2 . . . . Special 33 | . . . . . . . . . . . . 3 . 25 . . 5 . Kinetic 255 | 2 73 180 . . . . . . . . . . . . . . . . Thermal 222 | 2 40 30 136 14 . . . . . . . . . . . . . . Explosive 24 | . . . 3 . . . . . . . . . . 16 . . 5 . Electromagnetic . | . . . . . . . . . . . . . . . . . . . Entropic 39 | . . . . . . . . . . . . . . 1 2 6 30 . Robot Hit Streak 11 | 2 6 10 9 7 . . . . . . . 10 . 8 3 6 11 . Robot Miss Streak 6 | . 5 5 4 3 . . . . . . . . . 6 . 1 3 . Penetration Max . | . . . . . . . . . . . . . . . . . . . Secondary Targets 7 | . 2 3 2 . . . . . . . . . . . . . . . Max Gunslinging Chain 1 | . 1 1 1 . . . . . . . . . . . . . . . Shots Hit Robots 435 | 2 66 111 80 9 . 31 5 1 . . 11 10 1 24 9 24 26 25 Core Hits 241 | 2 27 37 36 6 . 12 2 1 . . 5 2 . 78 3 11 7 12 Critical Kills 1 | . . 1 . . . . . . . . . . . . . . . . Critical Parts Destroyed 1 | . . 1 . . . . . . . . . . . . . . . . Critical Strikes 28 | . 3 3 6 . . 2 . . . . 2 . . 3 . 5 2 2 Burn 10 | . 3 1 6 . . . . . . . . . . . . . . . Destroy 2 | . . 2 . . . . . . . . . . . . . . . . Sever 3 | . . . . . . . . . . . . . . 3 . . . . Sunder 5 | . . . . . . . . . . . . . . . . 3 2 . Melee Attacks 198 | . . . . . . 58 8 1 1 . 30 7 2 3 11 31 7 39 Impact . | . . . . . . . . . . . . . . . . . . . Slashing 198 | . . . . . . 58 8 1 1 . 30 7 2 3 11 31 7 39 Piercing . | . . . . . . . . . . . . . . . . . . . Sneak Attacks 27 | . . . . . . 6 2 1 . . 4 . 1 . 1 5 . 7 Combat Hostiles 3 | . . . . . . 1 . . . . . . . . 1 . . 1 Follow-up Attacks 2 | . . . . . . . . . . . . . . . 1 . . 1 Damage Inflicted 21682 | 37 903 1813 1549 203 . 1537 296 105 . . 725 305 76 7084 491 1505 3581 1472 Guns 3963 | 37 903 1813 1210 . . . . . . . . . . . . . . . Cannons 3008 | . . . 227 203 . . . . . . . . . . 172 395 2011 . Explosions 8061 | . . . 99 . . . . . . . . . . 6423 . 93 1446 . Melee 5905 | . . . . . . 1537 296 105 . . 725 305 76 53 319 1017 . 1472 Ramming 13 | . . . 13 . . . . . . . . . . . . . . . Kinetic 2130 | 25 649 1456 . . . . . . . . . . . . . . . . Thermal 2263 | 12 254 357 1437 203 . . . . . . . . . . . . . . Explosive 7968 | . . . 99 . . . . . . . . . . 6423 . . 1446 . Electromagnetic 93 | . . . . . . . . . . . . . . . . 93 . . Impact . | . . . . . . . . . . . . . . . . . . . Slashing 6637 | . . . . . . 1537 296 105 . . 725 305 76 661 319 1017 124 1472 Piercing . | . . . . . . . . . . . . . . . . . . . Entropic 2578 | . . . . . . . . . . . . . . . 172 395 2011 . Highest Corruption 17 | . . 4 6 6 6 2 2 2 . . . 4 4 13 17 . . 8 Average Corruption 4 | . . 3 5 6 6 1 2 1 . . . 3 4 2 15 . . 5 Corruption Purged 2 | . . . . . . . . 2 . . . . . . . . . . Corruption Blocked . | . . . . . . . . . . . . . . . . . . . Effects 99 | . . 1 23 22 20 5 7 . . . . . 2 4 8 . . 7 Message Errors 24 | . . . 7 4 5 2 2 . . . . . . 2 1 . . 1 Matter Fused 23 | . . . 6 6 5 1 . . . . . . 1 . 1 . . 3 Heat Flow Errors 14 | . . . 4 3 . 1 1 . . . . . 1 . 2 . . 2 Energy Discharges 13 | . . . . 4 5 . 2 . . . . . . 2 . . . . Parts Fused 3 | . . . . 1 . 1 . . . . . . . . 1 . . . Data Loss (minor) 15 | . . 1 4 3 2 . 2 . . . . . . . 2 . . 1 Data Loss (major) 5 | . . . 2 . 2 . . . . . . . . . 1 . . . Alerts 2 | . . . . 1 1 . . . . . . . . . . . . . Overload Shots . | . . . . . . . . . . . . . . . . . . . Overflow Damage 985 | . . . 3 . . 100 95 . . . 146 29 . 248 66 194 . 104 Projectiles 86 | . . . 3 . . . . . . . . . . . . 83 . . Explosions 248 | . . . . . . . . . . . . . . 248 . . . . Melee 651 | . . . . . . 100 95 . . . 146 29 . . 66 111 . 104 Knockbacks . | . . . . . . . . . . . . . . . . . . . Impact . | . . . . . . . . . . . . . . . . . . . Kinetic . | . . . . . . . . . . . . . . . . . . . Secondary . | . . . . . . . . . . . . . . . . . . . Self-Inflicted Damage 6 | . . . 6 . . . . . . . . . . . . . . . Shots . | . . . . . . . . . . . . . . . . . . . Rammed 1 | . . . 1 . . . . . . . . . . . . . . . Targets Rammed 1 | . . . 1 . . . . . . . . . . . . . . . Kicked . | . . . . . . . . . . . . . . . . . . . Crushed . | . . . . . . . . . . . . . . . . . . . Highest Temperature 380 | 9 181 380 259 185 . 244 272 . . . . 11 . 75 145 90 271 211 Average Temperature 59 | 6 40 67 72 57 . 140 137 . . . . 3 . 22 25 46 123 111 Received Heat Transfer 1236 | . 360 186 159 18 . 176 . . . . 18 12 . 12 . 283 . 12 Effects 1 | . . . . . . 1 . . . . . . . . . . . . Energy Bleed 1 | . . . . . . 1 . . . . . . . . . . . . Siege Activations . | . . . . . . . . . . . . . . . . . . . Martial Activations . | . . . . . . . . . . . . . . . . . . . Shielding Activations . | . . . . . . . . . . . . . . . . . . . Robots Disrupted 4 | . . . . . . 1 . . . . . 1 . . . 1 . 1 Combat Hostiles 3 | . . . . . . 1 . . . . . 1 . . . 1 . . Robots Corrupted . | . . . . . . . . . . . . . . . . . . . Combat Hostiles . | . . . . . . . . . . . . . . . . . . . Parts Fried . | . . . . . . . . . . . . . . . . . . . Impact Corruptions . | . . . . . . . . . . . . . . . . . . . Robots Melted . | . . . . . . . . . . . . . . . . . . . Combat Hostiles . | . . . . . . . . . . . . . . . . . . . Parts Melted 11 | . 2 . 6 1 . . . . . . . . . . . 2 . . Heat Transferred 5620 | 37 927 851 3478 327 . . . . . . . . . . . . . . Parts Sabotaged . | . . . . . . . . . . . . . . . . . . . Parts Stolen 1 | . . . . . . . 1 . . . . . . . . . . . Parts Stripped . | . . . . . . . . . . . . . . . . . . . Power Chain Reactions . | . . . . . . . . . . . . . . . . . . . Alert | -11 -10 -9 -9 -9 -9 -6 -6 -6 -6 -5 -5 -5 -5 -5 -4 -4 -4 -4 ------- Run | Yrd Mat Mat Sto Rec Scr Fac Low Low Zio Pro Fac Upp Upp War Pro Fac Was Fac Maximum Alert Level 2 | . 1 1 1 1 . . . . . . . . . . . 2 . 1 Low Security (%) 76 | 100 95 93 15 97 . 100 . . . . 100 . . . . 23 100 80 Level 1 18 | . 4 6 84 2 . . . . . . . . . . . 26 . 19 Level 2 5 | . . . . . . . . . . . . . . . . 49 . . Level 3 . | . . . . . . . . . . . . . . . . . . . Level 4 . | . . . . . . . . . . . . . . . . . . . Level 5 . | . . . . . . . . . . . . . . . . . . . High Security . | . . . . . . . . . . . . . . . . . . . Max Security . | . . . . . . . . . . . . . . . . . . . Peak Influence 532 | 5 208 218 369 203 . 88 . . . . 93 . . . . 532 130 354 Initial 165 | . . 76 86 115 . . . . . . 12 . . . . 165 128 8 Average 139 | . 97 76 281 140 . 19 . . . . 43 . . . . 357 84 137 Influence Increases 5569 | 10 508 449 629 307 . 428 5 . . 75 168 110 15 852 165 971 90 787 Destroy 0b10 Robot/C 2620 | . 280 240 340 80 . 160 . . . . 40 40 . 720 40 340 . 340 Destroy 0b10 Robot/NC 270 | 10 15 75 55 5 . 20 5 . . . 10 . . 15 10 15 . 35 Destroy Leader 460 | . 74 76 78 . . 52 . . . . 22 10 . . 10 64 . 74 Allied During Kill 357 | . . . . 47 . 13 . . . . . . . 72 . 44 . 181 Successful Hack 189 | . 48 11 30 25 . 40 . . . . . . . . . 29 . 6 Select Force Hacks 290 | . 60 . . 150 . 80 . . . . . . . . . . . . Disable Machine 300 | . . . 30 . . 30 . . . . 15 . . . . 210 . 15 Destroy Structure 273 | . 1 2 36 . . 18 . . . . 36 . . . . 44 90 46 Advance Influence 150 | . . . . . . . . . . . . . . . . 150 . . Partial Spotted 45 | . . . . . . . . . . . 30 . . . . . . 15 Lose Combat Pursuer 615 | . 30 45 60 . . 15 . . . 75 15 60 15 45 105 75 . 75 Influence Decreases 5464 | 10 328 423 538 524 80 344 89 . . 55 98 134 66 379 628 630 444 694 Entered New Map 1328 | . . 104 120 182 80 . 32 . . . 8 34 13 15 488 10 238 4 Time Decay 3034 | 10 308 319 398 342 . 302 57 . . 55 90 80 53 214 70 350 206 180 Lost Part 480 | . 20 . 20 . . 10 . . . . . 20 . 60 70 110 . 170 Lost Ally 622 | . . . . . . 32 . . . . . . . 90 . 160 . 340 Squads Dispatched 44 | . 5 1 1 . . 11 . . . . 9 . . . . 8 . 9 Investigation 19 | . 2 . . . . 6 . . . . 6 . . . . 4 . 1 Extermination 7 | . . . . . . 3 . . . . . . . . . 2 . 2 Reinforcement 15 | . 3 1 1 . . 2 . . . . 3 . . . . 2 . 3 Assault . | . . . . . . . . . . . . . . . . . . . Garrison 3 | . . . . . . . . . . . . . . . . . . 3 Intercept . | . . . . . . . . . . . . . . . . . . . Searches Triggered . | . . . . . . . . . . . . . . . . . . . Construction Impeded 1 | . . . . . . . . . . . 1 . . . . . . . Haulers Reinforced 2 | . . . . . . . . . . . . . . . . 2 . . Active Scanning Responses . | . . . . . . . . . . . . . . . . . . . Cargo Convoy Interrupts . | . . . . . . . . . . . . . . . . . . . Stealth | -11 -10 -9 -9 -9 -9 -6 -6 -6 -6 -5 -5 -5 -5 -5 -4 -4 -4 -4 --------- Run | Yrd Mat Mat Sto Rec Scr Fac Low Low Zio Pro Fac Upp Upp War Pro Fac Was Fac Distress Signals 9 | . 1 2 2 . . . . . . . . . . 2 . 2 . . Communications Jammed 8 | . . . . . . . . . . . . . . . . 8 . . Distress Signals 8 | . . . . . . . . . . . . . . . . 8 . . Times Spotted 265 | . 25 22 25 3 . 13 1 3 . 5 8 7 1 71 10 40 6 25 Peak Tracking Total 17 | . 4 3 7 2 . 3 1 . . 3 3 4 1 17 4 7 3 8 Tactical Retreats 25 | . 2 2 3 . . 1 . . . 3 1 1 1 2 2 3 . 4 Traps | -11 -10 -9 -9 -9 -9 -6 -6 -6 -6 -5 -5 -5 -5 -5 -4 -4 -4 -4 ------- Run | Yrd Mat Mat Sto Rec Scr Fac Low Low Zio Pro Fac Upp Upp War Pro Fac Was Fac Traps Triggered 7 | . . 2 2 . 1 . . . . . . . . . . 2 . . Indirectly . | . . . . . . . . . . . . . . . . . . . Trap Hack Attempts . | . . . . . . . . . . . . . . . . . . . Triggered . | . . . . . . . . . . . . . . . . . . . Disarmed . | . . . . . . . . . . . . . . . . . . . Reprogrammed . | . . . . . . . . . . . . . . . . . . . Reused . | . . . . . . . . . . . . . . . . . . . Traps Extracted . | . . . . . . . . . . . . . . . . . . . Installed 1 | . . . . . 1 . . . . . . . . . . . . . Triggered . | . . . . . . . . . . . . . . . . . . . Machines | -11 -10 -9 -9 -9 -9 -6 -6 -6 -6 -5 -5 -5 -5 -5 -4 -4 -4 -4 ---------- Run | Yrd Mat Mat Sto Rec Scr Fac Low Low Zio Pro Fac Upp Upp War Pro Fac Was Fac Machines Disabled 21 | . . . 2 . . 2 . . . . 1 . . 1 . 14 . 1 Max in Single Turn 8 | . . . 1 . . 1 . . . . 1 . . 1 . 8 . . Garrison Access 1 | . . . . . . . . . . . . . . . . 1 . . Machines Repaired . | . . . . . . . . . . . . . . . . . . . Machines Dismantled . | . . . . . . . . . . . . . . . . . . . Machines Sabotaged . | . . . . . . . . . . . . . . . . . . . Overloaded Fab Kills . | . . . . . . . . . . . . . . . . . . . Hacking | -11 -10 -9 -9 -9 -9 -6 -6 -6 -6 -5 -5 -5 -5 -5 -4 -4 -4 -4 --------- Run | Yrd Mat Mat Sto Rec Scr Fac Low Low Zio Pro Fac Upp Upp War Pro Fac Was Fac Machines Accessed 70 | . 8 4 9 11 2 11 . . . . 9 . . 4 . 9 . 3 Terminals 33 | . 6 4 8 6 . 3 . . . . 2 . . . . 2 . 2 Fabricators 8 | . . . . . . 3 . . . . 2 . . . . 2 . 1 Repair Stations . | . . . . . . . . . . . . . . . . . . . Recycling Units 20 | . 2 . 1 5 . 3 . . . . 5 . . . . 4 . . Scanalyzers 2 | . . . . . . 2 . . . . . . . . . . . . Garrison Access 1 | . . . . . . . . . . . . . . . . 1 . . Total Hacks 179 | . 30 10 26 31 3 21 . . . . 21 . . 12 . 18 . 7 Successful 109 | . 16 4 13 21 3 13 . . . . 9 . . 12 . 15 . 3 Failed 70 | . 14 6 13 10 . 8 . . . . 12 . . . . 3 . 4 Catastrophic 11 | . 2 . 2 2 . 2 . . . . 2 . . . . . . 1 Database Lockouts . | . . . . . . . . . . . . . . . . . . . Manual 115 | . 28 9 19 24 . 14 . . . . 11 . . . . 5 . 5 Terminals 97 | . 26 10 24 19 . 6 . . . . 3 . . . . 4 . 5 Fabricators 14 | . . . . . . 4 . . . . 4 . . . . 4 . 2 Repair Stations . | . . . . . . . . . . . . . . . . . . . Recycling Units 48 | . 4 . 2 12 . 7 . . . . 14 . . . . 9 . . Scanalyzers 4 | . . . . . . 4 . . . . . . . . . . . . Garrison Access 1 | . . . . . . . . . . . . . . . . 1 . . Terminal Hacks 31 | . 3 . 5 3 3 1 . . . . . . . 12 . 3 . 1 Record 3 | . . . . . 1 . . . . . . . . 2 . . . . Prototype ID Bank 10 | . . . . . . . . . . . . . . 9 . 1 . . Open Door 5 | . . . 3 . 1 . . . . . . . . 1 . . . . Level Access Points 1 | . . . . . . . . . . . . . . . . 1 . . Branch Access Points 1 | . 1 . . . . . . . . . . . . . . . . . Recycling Unit Index 2 | . . . . . . 1 . . . . . . . . . 1 . . Recall Reinforcements 1 | . . . . . . . . . . . . . . . . . . 1 Registered Components 1 | . 1 . . . . . . . . . . . . . . . . . Zone Layout 6 | . 1 . 2 3 . . . . . . . . . . . . . . Proto ID Catalog 1 | . . . . . 1 . . . . . . . . . . . . . Fabricator Hacks 10 | . . . . . . 2 . . . . 2 . . . . 4 . 2 Network Status 1 | . . . . . . . . . . . . . . . . . . 1 Load Schematic 3 | . . . . . . . . . . . 1 . . . . 2 . . Build 6 | . . . . . . 2 . . . . 1 . . . . 2 . 1 Repair Station Hacks . | . . . . . . . . . . . . . . . . . . . Recycling Unit Hacks 13 | . 1 . 1 3 . 3 . . . . 2 . . . . 3 . . Retrieve Components 13 | . 1 . 1 3 . 3 . . . . 2 . . . . 3 . . Scanalyzer . | . . . . . . . . . . . . . . . . . . . Garrison Access Hacks 1 | . . . . . . . . . . . . . . . . 1 . . Seal Access 1 | . . . . . . . . . . . . . . . . 1 . . Unauthorized Hacks 54 | . 12 4 7 15 . 7 . . . . 5 . . . . 4 . . Terminals 32 | . 10 4 7 10 . 1 . . . . . . . . . . . . Assimilate 1 | . . . . 1 . . . . . . . . . . . . . . Botnet 12 | . 4 1 2 4 . 1 . . . . . . . . . . . . Skim 19 | . 6 3 5 5 . . . . . . . . . . . . . . Fabricators 2 | . . . . . . 1 . . . . 1 . . . . . . . Download 1 | . . . . . . 1 . . . . . . . . . . . . Recompile 1 | . . . . . . . . . . . 1 . . . . . . . Repair Stations . | . . . . . . . . . . . . . . . . . . . Recycling Units 18 | . 2 . . 5 . 3 . . . . 4 . . . . 4 . . Tunnel 7 | . 2 . . 5 . . . . . . . . . . . . . . Fedlink 11 | . . . . . . 3 . . . . 4 . . . . 4 . . Scanalyzers 2 | . . . . . . 2 . . . . . . . . . . . . Extract 2 | . . . . . . 2 . . . . . . . . . . . . Garrison Access . | . . . . . . . . . . . . . . . . . . . Data Cores Recovered 2 | . . . 1 . . . . . . . . . . . . . . 1 Used 1 | . . . . . . . . . . . . . . . . . . 1 Hacking Detections 47 | . 7 4 9 7 . 7 . . . . 5 . . . . 5 . 3 Full Trace Events 2 | . . . . . . . . . . . 1 . . . . . . 1 Feedback Events . | . . . . . . . . . . . . . . . . . . . Feedback Blocked . | . . . . . . . . . . . . . . . . . . . Robot Schematics Acquired 3 | . . . . . . . . . 3 . . . . . . . . . Robots Built . | . . . . . . . . . . . . . . . . . . . Authchips . | . . . . . . . . . . . . . . . . . . . Time . | . . . . . . . . . . . . . . . . . . . Total Robot Build Rating . | . . . . . . . . . . . . . . . . . . . Part Schematics Acquired 23 | . . . . . . 8 . . 15 . . . . . . . . . Parts Built 9 | . . . . . . 4 . . . . 2 . . . . 2 . 1 Authchips 1 | . . . . . . . . . . . . . . . . 1 . . Time 382 | . . . . . . 122 . . . . 64 . . . . 127 . 69 Total Part Build Rating 73 | . . . . . . 30 . . . . 16 . . . . 18 . 9 Parts Repaired . | . . . . . . . . . . . . . . . . . . . Time . | . . . . . . . . . . . . . . . . . . . Parts Recycled . | . . . . . . . . . . . . . . . . . . . Recycled Matter . | . . . . . . . . . . . . . . . . . . . Retrieved Matter . | . . . . . . . . . . . . . . . . . . . Retrieved Components 39 | . 2 . 9 4 . 5 . . . . 4 . . . . 15 . . Parts Scanalyzed . | . . . . . . . . . . . . . . . . . . . Part Schematics Acquired . | . . . . . . . . . . . . . . . . . . . Parts Damaged . | . . . . . . . . . . . . . . . . . . . Bothacking | -11 -10 -9 -9 -9 -9 -6 -6 -6 -6 -5 -5 -5 -5 -5 -4 -4 -4 -4 ------------ Run | Yrd Mat Mat Sto Rec Scr Fac Low Low Zio Pro Fac Upp Upp War Pro Fac Was Fac Used RIF Installer . | . . . . . . . . . . . . . . . . . . . Robots Hacked 1 | . . . . . . . . . . . . . . 1 . . . . Non-combat 1 | . . . . . . . . . . . . . . 1 . . . . Combat . | . . . . . . . . . . . . . . . . . . . Robot Hacks Applied 1 | . . . . . . . . . . . . . . 1 . . . . parse_system 1 | . . . . . . . . . . . . . . 1 . . . . Relay Couplers Released . | . . . . . . . . . . . . . . . . . . . Fabnet Peak Effective % . | . . . . . . . . . . . . . . . . . . . Robots Rewired 16 | . . . . 10 . 1 . . . . . . . 5 . . . . Allies Hacked 1 | . . . . . . . . . . . . . . . . . . 1 Hacks Repelled . | . . . . . . . . . . . . . . . . . . . Allies | -11 -10 -9 -9 -9 -9 -6 -6 -6 -6 -5 -5 -5 -5 -5 -4 -4 -4 -4 -------- Run | Yrd Mat Mat Sto Rec Scr Fac Low Low Zio Pro Fac Upp Upp War Pro Fac Was Fac Total Allies 53 | . . . 10 10 . 1 . . . . . . . 5 . 8 19 . Largest Group 20 | . . . 10 20 20 20 . . . . . . . 5 . 1 19 19 Highest-Rated Group 684 | . . . 88 245 245 245 . . . . . . . 271 . 116 684 684 Highest-Rated Ally 116 | . . . 16 27 27 27 . . . . . . . 68 . 116 50 50 Total Orders 5 | . . . . . 2 . . . . . . . . 3 . . . . STAY 2 | . . . . . 1 . . . . . . . . 1 . . . . FOLLOW 3 | . . . . . 1 . . . . . . . . 2 . . . . Ally Attacks 223 | . . . . 14 . 41 . . . . . . . 20 . 64 . 84 Total Damage 5908 | . . . . 165 . 465 . . . . . . . 1021 . 2097 . 2160 Kills 33 | . . . . 1 . 1 . . . . . . . 5 . 13 . 13 Allies Corrupted . | . . . . . . . . . . . . . . . . . . . Allies Melted . | . . . . . . . . . . . . . . . . . . . Intel | -11 -10 -9 -9 -9 -9 -6 -6 -6 -6 -5 -5 -5 -5 -5 -4 -4 -4 -4 ------- Run | Yrd Mat Mat Sto Rec Scr Fac Low Low Zio Pro Fac Upp Upp War Pro Fac Was Fac Active Infowar (turns) 4715 | 24 832 503 . . 12 1276 323 109 400 186 166 165 117 66 201 282 . 53 Optics 360 | . . . . . . . . . . . . . . . 201 159 . . Terrain 4117 | . 505 503 . . 12 1276 323 109 400 186 163 165 117 66 127 165 . . Seismic 755 | 24 327 . . . . 351 . . . . . . . . . . . 53 Jamming 120 | . . . . . . . . . . . 3 . . . . 117 . . ECM 8 | . . . . . . 8 . . . . . . . . . . . . Robot Analysis Total . | . . . . . . . . . . . . . . . . . . . Derelict Logs Recovered 8 | . . . . . . . 3 1 1 . . . 1 . 2 . . . Drone Launches 1 | . . . . . . . . . . . . . . . . 1 . . Drone Recoveries . | . . . . . . . . . . . . . . . . . . . Exploration | -11 -10 -9 -9 -9 -9 -6 -6 -6 -6 -5 -5 -5 -5 -5 -4 -4 -4 -4 ------------- Run | Yrd Mat Mat Sto Rec Scr Fac Low Low Zio Pro Fac Upp Upp War Pro Fac Was Fac Turns Passed 13162 | 132 835 931 949 760 3912 1281 323 175 417 186 196 165 128 965 208 795 432 372 Spaces Moved 14441 | 85 399 478 506 463 2942 1142 1045 352 1232 347 341 560 440 2138 372 534 468 597 Core 40 | 27 . . . . . . . . . . . . . . . 10 . 3 Treads 835 | 58 399 249 . . . . . . . . . . . . . 129 . . Legs 1114 | . . . . . 489 625 . . . . . . . . . . . . Wheels 3787 | . . 229 506 463 2451 . . . . . . . . . . 138 . . Hover 296 | . . . . . . . . . . . . . . . . 117 . 179 Flight 8369 | . . . . . 2 517 1045 352 1232 347 341 560 440 2138 372 140 468 415 Fastest Speed 16 | 50 160 110 110 110 110 34 28 26 26 26 24 24 24 16 18 32 35 26 Average Speed 70 | 125 160 138 126 123 124 85 28 27 26 26 25 24 24 27 41 109 48 38 Slowest Speed 270 | 160 160 185 155 125 270 195 34 28 110 26 26 24 25 97 108 184 110 105 Overloaded Moves 41 | . . . . . . . . . . . . . . 12 10 19 . . Propulsion Burnouts . | . . . . . . . . . . . . . . . . . . . Robots Hopped 6 | . . . . . . . . . . . . . . 5 . . . 1 Potential Cave-ins . | . . . . . . . . . . . . . . . . . . . Cave-ins Triggered 2 | . . . . . . . . . . . . . . 1 1 . . . Exploration Rate (%) 57 | 5 61 41 56 89 86 30 95 60 84 51 14 77 73 87 61 14 95 22 Regions Visited 18 Branch Regions 11 Pre-discovered Areas 12 | . 2 . 2 5 . 1 . . 2 . . . . . . . . . Known Exits Taken 5 | . . . 1 1 . 1 . . . . 1 . . . 1 . . . Unknown Exits Taken 11 | 1 1 1 . . 1 . 1 1 1 1 . 1 1 1 . . . . Scrap Searched 27 | . . . . . 11 . 5 3 3 . . 2 2 . 1 . . . Spaces Dug 62 | . . . . . . 18 3 . . . 18 . 1 . 2 6 7 7 Terrain Destroyed 312 | . . . 29 . . 18 3 . . . 18 . 1 153 2 6 75 7 Melee 62 | . . . . . . 18 3 . . . 18 . 1 . 2 6 7 7 Projectile 13 | . . . . . . . . . . . . . . 2 . . 11 . AOE 237 | . . . 29 . . . . . . . . . . 151 . . 57 . Terrain Rammed . | . . . . . . . . . . . . . . . . . . . Walls Destroyed . | . . . . . . . . . . . . . . . . . . . Machines Disabled . | . . . . . . . . . . . . . . . . . . . Actions | -11 -10 -9 -9 -9 -9 -6 -6 -6 -6 -5 -5 -5 -5 -5 -4 -4 -4 -4 --------- Run | Yrd Mat Mat Sto Rec Scr Fac Low Low Zio Pro Fac Upp Upp War Pro Fac Was Fac Total 16740 | 107 489 628 708 639 3198 1358 1061 429 1325 442 404 579 453 2495 413 696 631 685 Wait 1042 | . 3 13 76 68 187 68 . 63 72 96 7 3 . 222 8 50 97 9 Move 14414 | 84 398 477 505 462 2941 1141 1044 351 1231 346 340 559 439 2129 371 534 467 595 Hop 4 | . . . . . . . . . . . . . . 3 . . . 1 Pick Up 208 | 13 15 26 20 . 15 23 2 3 5 . 7 3 2 32 5 27 4 6 Fast Attach 76 | . . 4 3 . 8 10 2 2 3 . 5 . . 8 3 17 . 11 Attach 109 | 7 4 5 7 . 5 12 . 2 3 . 6 2 . 22 2 12 9 11 Detach 29 | . . 1 . 2 2 2 . . . . . . 1 9 2 1 7 2 Swap 72 | . 3 11 10 . 12 12 2 2 2 . . . 7 7 2 . . 2 Drop 209 | 1 6 21 23 3 27 26 3 5 8 . 9 2 2 32 8 18 5 10 Fire 268 | 2 60 70 55 7 . . . . . . . 3 . 28 2 6 35 . Melee 196 | . . . . . . 58 8 1 1 . 30 7 2 3 10 31 7 38 Ram 1 | . . . 1 . . . . . . . . . . . . . . . Kick . | . . . . . . . . . . . . . . . . . . . Crush . | . . . . . . . . . . . . . . . . . . . Escape Stasis 8 | . . . 8 . . . . . . . . . . . . . . . Rewire 103 | . . . . 97 . 6 . . . . . . . . . . . . Trap 1 | . . . . . 1 . . . . . . . . . . . . . Miscellaneous . | . . . . . . . . . . . . . . . . . . . Route ------- -11/Scrapyard -10/Materials (discovered 3 exits: *Mat x2 / Min) -9/Materials (discovered 3 exits: *Mat / [*Min] / *Sto) -9/Storage (discovered 2 exits: Mat / *Rec) -9/Recycling (discovered 2 exits: *Fac / *Scr) -9/Scraptown (discovered 2 exits: *Fac x2) -6/Factory (discovered 4 exits: Fac x2 / *Low x2) -6/Lower Caves -6/Lower Caves -6/Zion -5/Proximity Caves -5/Factory (discovered 3 exits: Fac / *Upp x2) -5/Upper Caves -5/Upper Caves (discovered 2 exits: *Fac / *War) -5/Warlord -4/Proximity Caves -4/Factory (discovered 5 exits: Res x4 / Upp) -4/Waste -4/Factory History --------- Turn | Location | Event 9 | -11/Scrapyard | Discovered new exit (range 16) 133 | -11/Scrapyard | Entered Materials 308 | -10/Materials | Build established: Mutant 365 | -10/Materials | Identified exit to Mines 596 | -10/Materials | Core integrity fell below 50% 671 | -10/Materials | Discovered new exit (range 4) 826 | -10/Materials | Discovered new exit (range 15) 968 | -10/Materials | Entered another Materials area 968 | -9/Materials | Evolved 2 slots: Utility x1, Weapon x1 1093 | -9/Materials | Discovered new exit (range 5) 1255 | -9/Materials | Build established: Skirmisher 1558 | -9/Materials | Discovered new exit (range 11) 1771 | -9/Materials | Discovered new exit (range 3) 1778 | -9/Materials | Build established: Gunner 1899 | -9/Materials | Entered Storage 2720 | -9/Storage | Learned location of 1 exit from Recycling 2727 | -9/Storage | Assisted by bots powering up and referring to "LRC-V3" 2756 | -9/Storage | Learned 4 Recycling zone layouts 2781 | -9/Storage | Learned Materials terminal intel 2794 | -9/Storage | Identified exit to Recycling 2794 | -9/Storage | Identified exit to Materials 2798 | -9/Storage | Learned location of 1 exit from Recycling 2807 | -9/Storage | Learned location of Recycling (-9) 2833 | -9/Storage | Used back door to open Recycling access 2848 | -9/Storage | Entered Recycling 2848 | -9/Recycling | Accompanied by 10 allies 2849 | -9/Recycling | Met a Zionite searching for Scraptown 2849 | -9/Recycling | Identified exit to Factory 2849 | -9/Recycling | Identified exit to Scraptown 3022 | -9/Recycling | Build established: Commander-Tank 3503 | -9/Recycling | Scanned before Scraplab entrance 3519 | -9/Recycling | Entered Scraplab 3554 | -9/Recycling | Learned Materials stockpile data 3608 | -9/Recycling | Entered Scraptown 3608 | -9/Scraptown | Accompanied by 20 allies 3659 | -9/Scraptown | Visited Bundlers 3695 | -9/Scraptown | Visited Junk Repository 3723 | -9/Scraptown | Visited Red Mages 3770 | -9/Scraptown | Visited Supply Room 3779 | -9/Scraptown | Build established: Commander-Mutant 3837 | -9/Scraptown | Visited UFD Registry 3837 | -9/Scraptown | Registered with UFD as "Smoothslider" 3880 | -9/Scraptown | Visited Scrapoid Pod Storage 3899 | -9/Scraptown | Visited Science Guys 3949 | -9/Scraptown | Visited Sword Containment 4019 | -9/Scraptown | Visited Junk Cannon Lab 4125 | -9/Scraptown | Discovered new exit (range 3) 4402 | -9/Scraptown | Warned about trapping Scraptown 4461 | -9/Scraptown | Found Master Drone Bay 4487 | -9/Scraptown | Visited Infowarlord's Domain 4572 | -9/Scraptown | System corruption cleaned by C-Scrubber 4761 | -9/Scraptown | Visited DA-N13 Charitable Foundation 4775 | -9/Scraptown | Found DCF Scrap (29 items) 5018 | -9/Scraptown | Found Prototype Special Weapon 5245 | -9/Scraptown | Heard Great Nut preacher, LISTEN AND RECITE! 5307 | -9/Scraptown | Discovered new exit (range 13) 6234 | -9/Scraptown | Visited CR-KLE's Repair Center 6715 | -9/Scraptown | Identified Junk Cannon 6890 | -9/Scraptown | CR-KLE repaired 4 parts 7152 | -9/Scraptown | Found Exp. Terrain Scanner 7440 | -9/Scraptown | Met Optimus 7440 | -9/Scraptown | Accepted into 0bPrime 7520 | -9/Scraptown | Entered Factory 7520 | -6/Factory | Accompanied by 20 allies 7520 | -6/Factory | Evolved 6 slots: Propulsion x3, Utility x3 7649 | -6/Factory | Fabricated Adv. Reaction Control System (x2) 7746 | -6/Factory | Lost 16 allies 7818 | -6/Factory | Lost 5 allies 7836 | -6/Factory | Found Prototype Launcher 7836 | -6/Factory | Identified Rocket Array 7876 | -6/Factory | Found Rocket Array 8034 | -6/Factory | Build established: Mutant 8064 | -6/Factory | Discovered new exit (range 21) 8284 | -6/Factory | Spotted B-75 Beast 8289 | -6/Factory | Fabricated Quantum Rifle? 8432 | -6/Factory | Build established: Scavenger-Mutant 8490 | -6/Factory | Discovered new exit (range 19) 8519 | -6/Factory | Loaded intel: 8 recycling unit locations 8581 | -6/Factory | Discovered new exit (range 29) 8617 | -6/Factory | Learned location of Protoforge (-2) 8732 | -6/Factory | Discovered new exit (range 15) 8738 | -6/Factory | Identified exit to Lower Caves 8798 | -6/Factory | Build established: Mutant 8801 | -6/Factory | Entered Lower Caves 8860 | -6/Lower Caves | Spotted B-75 Beast 8873 | -6/Lower Caves | Encountered a Warlord checkpoint 8878 | -6/Lower Caves | Learned 4 Factory zone layouts 8882 | -6/Lower Caves | Learned location of 2 exits from Factory 9098 | -6/Lower Caves | Build established: Sprinter 9119 | -6/Lower Caves | Discovered new exit (range 10) 9124 | -6/Lower Caves | Entered another Lower Caves area 9160 | -6/Lower Caves | Learned Factory terminal intel 9298 | -6/Lower Caves | Discovered new exit (range 8) 9299 | -6/Lower Caves | Entered Zion 9322 | -6/Zion | Discovered new exit (range 12) 9373 | -6/Zion | Visited the Megawrench Repair Shop 9374 | -6/Zion | Learned location of Quarantine (-2) 9398 | -6/Zion | Given A8's code to call for help 9406 | -6/Zion | Turned away by Imprinter 9499 | -6/Zion | Megawrench repaired 9 parts 9549 | -6/Zion | Build established: Scavenger-Sprinter 9570 | -6/Zion | Found GAL Module 9581 | -6/Zion | Found Prototype Device 9581 | -6/Zion | Identified Bomb Factory No. 2 9716 | -6/Zion | Entered Proximity Caves 9855 | -5/Proximity Caves | Discovered new exit (range 17) 9902 | -5/Proximity Caves | Entered Factory 9902 | -5/Factory | Evolved 2 slots: Propulsion x1, Utility x1 9903 | -5/Factory | Identified exit to Upper Caves 9904 | -5/Factory | Identified exit to Factory 9906 | -5/Factory | Loaded intel: 25 terminal locations 9924 | -5/Factory | Loaded intel: 8 recycling unit locations 10029 | -5/Factory | Fabricated Adv. Point Defense System? 10098 | -5/Factory | Entered Upper Caves 10104 | -5/Upper Caves | Encountered a Warlord checkpoint 10173 | -5/Upper Caves | Spotted B-75 Beast 10261 | -5/Upper Caves | Discovered new exit (range 5) 10263 | -5/Upper Caves | Entered another Upper Caves area 10274 | -5/Upper Caves | Discovered exit to Factory (range 21) 10276 | -5/Upper Caves | Spotted B-75 Beast 10346 | -5/Upper Caves | Learned 4 Factory zone layouts 10388 | -5/Upper Caves | Discovered new exit (range 5) 10391 | -5/Upper Caves | Entered Warlord 10400 | -5/Warlord | System corruption cleaned by Quarantine Array 10536 | -5/Warlord | Found Prototype Special Weapon 10537 | -5/Warlord | Identified RU-N14's Throwing Claymores v3 10540 | -5/Warlord | Found RU-N14's Throwing Claymores v3 10554 | -5/Warlord | Warlord's base attacked by MAIN.C 10592 | -5/Warlord | Found Prototype Energy Cannon 10594 | -5/Warlord | Found Prototype Energy Cannon 10595 | -5/Warlord | Identified Vortex Driver (x2) 10651 | -5/Warlord | Found Prototype Device 10652 | -5/Warlord | Identified Exp. Focal Shield 10654 | -5/Warlord | Found Prototype Device 10655 | -5/Warlord | Identified Exp. Phase Shifter 10659 | -5/Warlord | Found Prototype Processor 10659 | -5/Warlord | Identified Exp. Armor Integrity Analyzer 10725 | -5/Warlord | Found RU-N14's Throwing Claymores v3 10726 | -5/Warlord | Found RU-N14's Throwing Claymores v3 10727 | -5/Warlord | Found RU-N14's Throwing Claymores v3 10730 | -5/Warlord | Found RU-N14's Throwing Claymores v3 10750 | -5/Warlord | Build established: Commander-Sprinter 10861 | -5/Warlord | Lost 3 allies 10865 | -5/Warlord | Warlord forces counterattacked 10869 | -5/Warlord | Destroyed 9 combat bots 10876 | -5/Warlord | Spotted Executioner 10887 | -5/Warlord | Destroyed Executioner 10910 | -5/Warlord | Destroyed 9 combat bots 10913 | -5/Warlord | Lost 3 allies 11019 | -5/Warlord | Lost 3 allies 11055 | -5/Warlord | Spotted Striker 11055 | -5/Warlord | Spotted Executioner 11055 | -5/Warlord | Spotted Striker 11079 | -5/Warlord | Destroyed 7 combat bots 11115 | -5/Warlord | Lost 8 allies 11229 | -5/Warlord | Warlord base infiltrated, sounded retreat 11234 | -5/Warlord | Spotted Executioner 11236 | -5/Warlord | Rebuked by Warlord 11273 | -5/Warlord | Lost 4 allies 11284 | -5/Warlord | Spotted Striker 11289 | -5/Warlord | Destroyed Striker 11295 | -5/Warlord | Spotted Striker 11331 | -5/Warlord | Discovered new exit (range 15) 11339 | -5/Warlord | Crushed by falling debris 11339 | -5/Warlord | System corruption reached 10% 11354 | -5/Warlord | Spotted Executioner 11354 | -5/Warlord | P-80 Master assimilated allied 0U-JU8(c) 11356 | -5/Warlord | Entered Proximity Caves 11359 | -4/Proximity Caves | Spotter reported a threat 11370 | -4/Proximity Caves | Lost 6 parts (2n4u) 11395 | -4/Proximity Caves | Learned Research stockpile data 11442 | -4/Proximity Caves | Spotted B-86 Titan 11447 | -4/Proximity Caves | Lost 3 parts (1n2u) 11447 | -4/Proximity Caves | Core integrity fell below 50% 11482 | -4/Proximity Caves | Crushed by falling debris 11513 | -4/Proximity Caves | Lost 4 parts (3n1u) 11564 | -4/Proximity Caves | Entered Factory 11564 | -4/Factory | Evolved 2 slots: Power x1, Utility x1 11565 | -4/Factory | Identified exit to Upper Caves 11587 | -4/Factory | Identified exit to Research 11628 | -4/Factory | Loaded intel: 8 recycling unit locations 11709 | -4/Factory | Build established: Mutant 11718 | -4/Factory | Spotted B-86 Titan 11727 | -4/Factory | Master Drone dominated B-86 Titan. 11760 | -4/Factory | Lost 6 parts (1p3n2u) 12011 | -4/Factory | Master Drone dominated G-67 Veteran. 12086 | -4/Factory | Fabricated Enh. Hardcell Cannon? 12108 | -4/Factory | Master Drone dominated S-27 Virus. 12114 | -4/Factory | Master Drone dominated S-27 Virus. 12118 | -4/Factory | Master Drone dominated S-27 Virus. 12128 | -4/Factory | Master Drone dominated P-70 Sage. 12156 | -4/Factory | Lost 4 allies 12225 | -4/Factory | Master Drone dominated Y-64 Sentinel. 12262 | -4/Factory | Master Drone dominated G-73 Enforcer. 12359 | -4/Factory | Manually triggered Chute Trap 12359 | -4/Factory | Sucked down chute 12359 | -4/Factory | Entered Waste 12361 | -4/Waste | Found Adv. Force Booster 12377 | -4/Waste | Lost 5 parts (2n3u) 12401 | -4/Waste | Spotted C-40 Crusher 12411 | -4/Waste | Destroyed C-40 Crusher 12414 | -4/Waste | Spotted C-40 Crusher 12419 | -4/Waste | Spotted C-40 Crusher 12436 | -4/Waste | Destroyed C-40 Crusher 12451 | -4/Waste | Destroyed C-40 Crusher 12463 | -4/Waste | Spotted C-40 Crusher 12500 | -4/Waste | Spotted C-40 Crusher 12516 | -4/Waste | Spotted C-40 Crusher 12526 | -4/Waste | Build established: Hacker-Mutant 12534 | -4/Waste | Destroyed C-40 Crusher 12548 | -4/Waste | Destroyed C-40 Crusher 12602 | -4/Waste | Warlord forces began an assault 12673 | -4/Waste | Discovered new exit (range 11) 12698 | -4/Waste | Found Adv. Force Booster 12791 | -4/Waste | Entered Factory 12791 | -4/Factory | Accompanied by 19 allies 12861 | -4/Factory | Garrison activated, responded to threat 12899 | -4/Factory | Core integrity fell below 50% 12948 | -4/Factory | Spotted B-86 Titan 12954 | -4/Factory | Fabricated Centrium Leg? 12978 | -4/Factory | Core integrity fell below 20% 13013 | -4/Factory | Lost 12 parts (1p6n5u) 13078 | -4/Factory | Lost 3 parts (3n) 13163 | -4/Factory | Destroyed by P-70 Sage via exploding Fusion Modulator Last Messages --------------- 13047_ VTOL Module destroyed. 13066_ ALERT: Security rotation in progress. 13072_ UVH4XHZC5&KA UT L MQSMXQOK 13075_ U-05 Engineer builds a Wall. 13091_ Acquired Seismic Detector. 13104_ Sneak attack on A-15 Conveyor. 13106_ System corrupted: Heat flow error (+239). 13106_ ALERT: Potential suspicious activity detected, Programmers report to Factory Zone 1R. 13110_ Penetrated by Slug. 13130_ Sneak attack on Y-64 Sentinel. Companion Sword: "Shhh." 13130_ Y-64 Sentinel destroyed. 13133_ Acquired 20 matter. 13141_ Sneak attack on R-10 Processor. 13141_ R-10 Processor destroyed. 13144_ Seismic Detector destroyed. 13153_ System corrupted: Matter fused (-6). 13163_ Fusion Modulator explodes. 13163_ Antigrav System destroyed. Map ----- +----------------------------------------------------+ | ######### #????????????????? | | #??# ??# ]] ##????????????????? | | #??# # ]] #?????????????????? | | #??# + ] #?????????????????? | | #??# # ! #?????????????????? | | ??+ !??# #?????????????????? | | ###???#????# """"""""" #?????????????????? | | #??????????# #?????????????????? | | ?????????????##/###########?????????????????? | | ????????????????# #???????????????????????????? | | ???????????????????# #???????????????????????????? | | ???????????????????# #???????????????????????????? | | ???????????????????# #???????????????????????????? | | ???????????????????# #???????????????????????????? | | ???????????????????# #???????????????????????????? | | ???????????????????# ###+########????????????????? | | ???????????######### #????????????????? | | ??????????+ #????????????????? | | ???????????############p ### #????????????????? | | ??????????????????????# #????????????????????? | | ??????????????????????# #????????????????????? | | ??????????############# #????????????????????? | | ??????????+ #????????????????????? | | ??????????????# #????????????????????? | | ??????????????# #????????????????????? | | ??????????????# @ #????????????????????? | | ??????????????####### #????????????????????? | | ????????????????????# #????????????????????? | | ????????????????????# ???????????????????? | | ????????????????????# ?????????????????? | | ????????????????????# ????????????????? | | ????????????????????u ] +??????????????? | | ???????????????????################??????????????? | | ?????????????????????????????????????????????????? | | ?????????????????????????????????????????????????? | | ?????????????????????????????????????????????????? | | ?????????????????????????????????????????????????? | | ?????????????????????????????????????????????????? | | ?????????????????????????????????????????????????? | | ?????????????????????????????????????????????????? | | ?????????????????????????????????????????????????? | | ?????????????????????????????????????????????????? | | ?????????????????????????????????????????????????? | | ?????????????????????????????????????????????????? | | ?????????????????????????????????????????????????? | | ?????????????????????????????????????????????????? | | ?????????????????????????????????????????????????? | | ?????????????????????????????????????????????????? | | ?????????????????????????????????????????????????? | | ?????????????????????????????????????????????????? | +----------------------------------------------------+ Best States ------------- Heat Dissipation 43 Energy Generation 31 Energy Capacity 490 Matter Stores 300 Matter Capacity 300 Sight Range 20 Terrain Scan Range 30 Terrain Scan Density 210 ECM Strength 1 Jamming Range 16 Power Amplification 20 Additional Mass Support 9 Armor Coverage 150 Propulsion Shielding 66 Phase Shifting 20 Evasion (%) 78 Targeting Accuracy 8 Melee Accuracy 14 Core Analysis 6 Armor Integrity Analysis 50 Recoil Reduction 2 Offensive Hacking 72 Defensive Hacking 12 Authchip Count 6 Item Schematics ----------------- Impulse Thruster | -6/Factory | Downloaded Weight Redist. System | -6/Factory | Extracted Lyr. Medium Armor Plating | -6/Factory | Extracted Energy Filter | -6/Factory | Extracted Phase Cannon | -6/Factory | Extracted Nuclear Pulse Thruster | -6/Factory | Extracted EM Shield | -6/Factory | Extracted Hvy. Plasma Cannon | -6/Factory | Extracted Imp. Trap Scanner | -6/Zion | Archive Hyp. Coil Gun | -6/Zion | Archive Imp. Proton Missile Launcher | -6/Zion | Archive Lrn. Tractor Beam | -6/Zion | Archive Drone Bay | -6/Zion | Archive Hvy. Shock Bomb Launcher | -6/Zion | Archive Imp. Actuator Array | -6/Zion | Archive Phase Gun | -6/Zion | Archive Adv. Cryofiber Web | -6/Zion | Archive Fusion Compressor | -6/Zion | Archive Disruptor Cannon | -6/Zion | Archive Imp. System Restoration Module | -6/Zion | Archive Arm. Medium Treads | -6/Zion | Archive Lrn. Proton Cannon | -6/Zion | Archive Hvy. Mass Driver | -6/Zion | Archive Robot Schematics ------------------ G-50 Soldier | -6/Zion | Archive L-41 Fighter | -6/Zion | Archive T-07 Excavator | -6/Zion | Archive Fabricated ------------ Adv. Reaction Control System | x2 | -6/Factory | Preloaded Quantum Rifle | x2 | -6/Factory | Preloaded Adv. Point Defense System | x2 | -5/Factory | Preloaded Enh. Hardcell Cannon | x2 | -4/Factory | Preloaded Centrium Leg | x1 | -4/Factory | Preloaded Repaired ---------- Nothing Alien Tech Used ----------------- None Achievements -------------- None Challenges ------------ None Game ------ Seed ElectrostormImprinterFlail Manual? 0 Play Time 02:35:10 Cumulative 375.4 hours Start 2025.10.12 @ 12:47:03 End 2025.10.13 @ 05:16:09 Sessions 5 Manual Loads 0 Difficulty Rogue Special Mode None Game No. 492 Rogue 492 Adventurer 0 Explorer 0 Win Type - Total 11 Types 6/0/1/2/1/0/1/0/0/0 Lore% 88 Gallery% 83 Achievement% 70 Wizard Run 0 Options --------- Layout 0 ASCII 0 Keyboard 0 Movement Mouse Keybinds 0 Fullscreen 1 Font 24/Tamsyn Map View 76x50 Zoom Use 0% Tactical HUD 1 Map Filters NONE Filters NONE Steam 1 RUN: b0e50663-f551-4a00-b597-976784883eff